[Event "Early-Titled-Tuesday-Blitz-September-26-2023"]
[Site "Chess.com"]
[Date "2023.09.26"]
[Round "9"]
[White "MokshanovAlexey"]
[Black "Rap_woyska"]
[Result "1/2-1/2"]
[WhiteElo "2668"]
[BlackElo "2535"]
[TimeControl "180+1"]
[EndTime "9:46:48 PDT"]
[Termination "Game drawn - insufficient material"]

1. e4 {[%clk 0:02:43.1]} 1... c5 {[%clk 0:02:59.1]} 2. Nf3 {[%clk 0:02:38.6]}
2... e6 {[%clk 0:02:58.9]} 3. c3 {[%clk 0:02:37.9]} 3... d5 {[%clk 0:02:57.1]}
4. exd5 {[%clk 0:02:37.4]} 4... Qxd5 {[%clk 0:02:57.8]} 5. Be2 {[%clk
0:02:36.9]} 5... Nc6 {[%clk 0:02:57]} 6. Na3 {[%clk 0:02:34.5]} 6... Nf6 {[%clk
0:02:56.7]} 7. d4 {[%clk 0:02:32.8]} 7... cxd4 {[%clk 0:02:55.3]} 8. Nb5 {[%clk
0:02:32.9]} 8... Qd8 {[%clk 0:02:55.4]} 9. Nbxd4 {[%clk 0:02:31.9]} 9... Nxd4
{[%clk 0:02:53.9]} 10. Nxd4 {[%clk 0:02:31.6]} 10... e5 {[%clk 0:02:18.1]} 11.
Nb5 {[%clk 0:02:26.1]} 11... a6 {[%clk 0:02:18]} 12. Qxd8+ {[%clk 0:02:11]}
12... Kxd8 {[%clk 0:02:18.4]} 13. Na3 {[%clk 0:02:11.6]} 13... Bxa3 {[%clk
0:02:03.4]} 14. bxa3 {[%clk 0:02:12.5]} 14... Be6 {[%clk 0:02:02.9]} 15. O-O
{[%clk 0:02:09.7]} 15... Kc7 {[%clk 0:01:56]} 16. a4 {[%clk 0:02:06.5]} 16...
Rhd8 {[%clk 0:01:50.2]} 17. f4 {[%clk 0:01:52.9]} 17... e4 {[%clk 0:01:45.9]}
18. f5 {[%clk 0:01:53.3]} 18... Bd7 {[%clk 0:01:33.9]} 19. Bf4+ {[%clk
0:01:50.9]} 19... Kc8 {[%clk 0:01:32.9]} 20. Bc4 {[%clk 0:01:47.1]} 20... Be8
{[%clk 0:01:29.1]} 21. a5 {[%clk 0:01:42.5]} 21... Nd5 {[%clk 0:01:21.6]} 22.
Rae1 {[%clk 0:01:31]} 22... Bb5 {[%clk 0:01:00.9]} 23. Rxe4 {[%clk 0:01:23.2]}
23... Nf6 {[%clk 0:00:40.7]} 24. Rd4 {[%clk 0:01:04.7]} 24... Rxd4 {[%clk
0:00:35.9]} 25. cxd4 {[%clk 0:01:05.6]} 25... Kd7 {[%clk 0:00:27.1]} 26. Bxb5+
{[%clk 0:01:00.3]} 26... axb5 {[%clk 0:00:27.3]} 27. Rc1 {[%clk 0:01:00.7]}
27... Nd5 {[%clk 0:00:25.4]} 28. Bd2 {[%clk 0:01:01.3]} 28... b4 {[%clk
0:00:20.2]} 29. Rc5 {[%clk 0:00:55.5]} 29... Kd6 {[%clk 0:00:20.8]} 30. Kf2
{[%clk 0:00:43.9]} 30... g6 {[%clk 0:00:21]} 31. fxg6 {[%clk 0:00:39.8]} 31...
fxg6 {[%clk 0:00:21.9]} 32. Ke2 {[%clk 0:00:39]} 32... Re8+ {[%clk 0:00:22]} 33.
Kd3 {[%clk 0:00:36.1]} 33... Rf8 {[%clk 0:00:22]} 34. Be1 {[%clk 0:00:31]} 34...
Rf1 {[%clk 0:00:19.3]} 35. Bg3+ {[%clk 0:00:30.8]} 35... Ke6 {[%clk 0:00:19.9]}
36. Rb5 {[%clk 0:00:31.1]} 36... Ra1 {[%clk 0:00:17.7]} 37. Kc4 {[%clk
0:00:23.4]} 37... Rc1+ {[%clk 0:00:18.1]} 38. Kb3 {[%clk 0:00:23.2]} 38... Rc3+
{[%clk 0:00:18.4]} 39. Kb2 {[%clk 0:00:22.6]} 39... Ra3 {[%clk 0:00:18.7]} 40.
Rxb4 {[%clk 0:00:14.9]} 40... Rxa5 {[%clk 0:00:18.6]} 41. Rxb7 {[%clk
0:00:14.8]} 41... Ne3 {[%clk 0:00:15.8]} 42. Rxh7 {[%clk 0:00:13.1]} 42... Nxg2
{[%clk 0:00:13.6]} 43. Rb7 {[%clk 0:00:12.7]} 43... Kd5 {[%clk 0:00:13.1]} 44.
Be5 {[%clk 0:00:12.3]} 44... Ne3 {[%clk 0:00:13.3]} 45. Kb3 {[%clk 0:00:11.9]}
45... Nf5 {[%clk 0:00:11.8]} 46. a4 {[%clk 0:00:11.7]} 46... Ra8 {[%clk
0:00:06.7]} 47. Rb5+ {[%clk 0:00:11.3]} 47... Ke4 {[%clk 0:00:06.9]} 48. a5
{[%clk 0:00:11.1]} 48... g5 {[%clk 0:00:06.8]} 49. Kb4 {[%clk 0:00:10.9]} 49...
g4 {[%clk 0:00:07]} 50. Bg3 {[%clk 0:00:08.9]} 50... Nxd4 {[%clk 0:00:07]} 51.
Re5+ {[%clk 0:00:09.2]} 51... Kd3 {[%clk 0:00:07]} 52. Rg5 {[%clk 0:00:08.1]}
52... Nc6+ {[%clk 0:00:07.2]} 53. Kb3 {[%clk 0:00:06.9]} 53... Nxa5+ {[%clk
0:00:06.4]} 54. Kb2 {[%clk 0:00:07.1]} 54... Nc4+ {[%clk 0:00:06.7]} 55. Kb3
{[%clk 0:00:07.6]} 55... Ne3 {[%clk 0:00:07]} 56. Bf4 {[%clk 0:00:06.1]} 56...
Rh8 {[%clk 0:00:04.9]} 57. Bxe3 {[%clk 0:00:04.4]} 57... Kxe3 {[%clk 0:00:05.6]}
58. Rxg4 {[%clk 0:00:05.3]} 58... Rxh2 {[%clk 0:00:06.1]} 59. Rc4 {[%clk
0:00:06]} 59... Rd2 {[%clk 0:00:06.1]} 60. Rc3+ {[%clk 0:00:06.1]} 60... Rd3
{[%clk 0:00:07]} 61. Rxd3+ {[%clk 0:00:06.7]} 61... Kxd3 {[%clk 0:00:07.4]}
1/2-1/2

[Event "Early-Titled-Tuesday-Blitz-September-26-2023"]
[Site "Chess.com"]
[Date "2023.09.26"]
[Round "9"]
[White "Kostya0705"]
[Black "andrzej"]
[Result "0-1"]
[WhiteElo "2583"]
[BlackElo "2464"]
[TimeControl "180+1"]
[EndTime "9:46:52 PDT"]
[Termination "andrzej won by resignation"]

1. e4 {[%clk 0:03:00.9]} 1... e5 {[%clk 0:02:59.5]} 2. Nf3 {[%clk 0:02:57.6]}
2... Nf6 {[%clk 0:02:59.6]} 3. d4 {[%clk 0:02:55.4]} 3... Nxe4 {[%clk
0:02:59.4]} 4. Bd3 {[%clk 0:02:55.2]} 4... d5 {[%clk 0:02:59.7]} 5. Nxe5 {[%clk
0:02:55.7]} 5... Bd6 {[%clk 0:03:00.3]} 6. c4 {[%clk 0:02:54]} 6... Bxe5 {[%clk
0:02:32.7]} 7. dxe5 {[%clk 0:02:52]} 7... Nc5 {[%clk 0:02:32.9]} 8. cxd5 {[%clk
0:02:48.8]} 8... O-O {[%clk 0:02:10.2]} 9. O-O {[%clk 0:02:46.7]} 9... Nbd7
{[%clk 0:01:57.6]} 10. f4 {[%clk 0:02:42.5]} 10... Nb6 {[%clk 0:01:56.2]} 11. d6
{[%clk 0:02:34.1]} 11... cxd6 {[%clk 0:01:53]} 12. exd6 {[%clk 0:02:35]} 12...
Be6 {[%clk 0:01:42.2]} 13. Rf3 {[%clk 0:02:18.2]} 13... Bg4 {[%clk 0:01:21.1]}
14. Bxh7+ {[%clk 0:01:51.2]} 14... Kxh7 {[%clk 0:01:20.9]} 15. Qc2+ {[%clk
0:01:51.1]} 15... Kg8 {[%clk 0:01:12.9]} 16. Rg3 {[%clk 0:01:50.5]} 16... Qxd6
{[%clk 0:00:58.8]} 17. Rxg4 {[%clk 0:01:48.4]} 17... Qd4+ {[%clk 0:00:57.9]} 18.
Kh1 {[%clk 0:01:44.8]} 18... Nd3 {[%clk 0:00:54.8]} 19. h3 {[%clk 0:01:15.1]}
19... Nf2+ {[%clk 0:00:46.6]} 20. Kh2 {[%clk 0:01:15.4]} 20... Nxg4+ {[%clk
0:00:46]} 21. hxg4 {[%clk 0:01:16.3]} 21... Nd5 {[%clk 0:00:41.8]} 22. Nc3
{[%clk 0:01:04.6]} 22... Rac8 {[%clk 0:00:38.5]} 23. Bd2 {[%clk 0:01:04.1]}
23... Nxf4 {[%clk 0:00:35.3]} 24. Rh1 {[%clk 0:01:03]} 24... Ng6 {[%clk
0:00:32.2]} 25. Kh3 {[%clk 0:00:52.7]} 25... Rfd8 {[%clk 0:00:30.7]} 26. Be1
{[%clk 0:00:52.2]} 26... Qd3+ {[%clk 0:00:30.4]} 27. Qxd3 {[%clk 0:00:51.9]}
27... Rxd3+ {[%clk 0:00:31.3]} 28. Kh2 {[%clk 0:00:52.5]} 28... Rd4 {[%clk
0:00:28.7]} 29. Bf2 {[%clk 0:00:50.4]} 29... Rxg4 {[%clk 0:00:28.2]} 30. Bxa7
{[%clk 0:00:50.5]} 30... Rh4+ {[%clk 0:00:27.3]} 31. Kg1 {[%clk 0:00:50.5]}
31... Rxh1+ {[%clk 0:00:26.8]} 32. Kxh1 {[%clk 0:00:51.4]} 32... f6 {[%clk
0:00:24.9]} 33. a4 {[%clk 0:00:50.6]} 33... Kf7 {[%clk 0:00:25.2]} 34. Kg1
{[%clk 0:00:51.2]} 34... Ke6 {[%clk 0:00:25.8]} 35. Kf2 {[%clk 0:00:51.8]} 35...
Ne5 {[%clk 0:00:25.5]} 36. Bd4 {[%clk 0:00:47.3]} 36... Nd3+ {[%clk 0:00:24.1]}
37. Ke3 {[%clk 0:00:46.6]} 37... Nxb2 {[%clk 0:00:24.5]} 38. Ne4 {[%clk
0:00:44.5]} 38... Nc4+ {[%clk 0:00:22.8]} 39. Kd3 {[%clk 0:00:44.8]} 39... Ne5+
{[%clk 0:00:22.3]} 40. Ke3 {[%clk 0:00:44.7]} 40... Rc4 {[%clk 0:00:17.2]} 41.
a5 {[%clk 0:00:36.7]} 41... Kd5 {[%clk 0:00:12.7]} 42. Nc3+ {[%clk 0:00:36.6]}
42... Kc6 {[%clk 0:00:11.6]} 43. g3 {[%clk 0:00:33.4]} 43... g5 {[%clk
0:00:11.2]} 44. Ne4 {[%clk 0:00:30.2]} 44... Nd7 {[%clk 0:00:06.9]} 45. Nxf6
{[%clk 0:00:18.9]} 45... Nxf6 {[%clk 0:00:06.9]} 46. Bxf6 {[%clk 0:00:19.8]}
46... Rc5 {[%clk 0:00:07.2]} 47. Bd8 {[%clk 0:00:20.1]} 47... Kd7 {[%clk
0:00:06.6]} 48. Bb6 {[%clk 0:00:19.8]} 48... Rb5 {[%clk 0:00:06.7]} 49. Ke4
{[%clk 0:00:20.1]} 49... Ke6 {[%clk 0:00:07]} 50. Bd8 {[%clk 0:00:19.7]} 50...
Rb4+ {[%clk 0:00:06.7]} 51. Kf3 {[%clk 0:00:20.1]} 51... g4+ {[%clk 0:00:06.8]}
52. Ke3 {[%clk 0:00:19.9]} 52... Ke5 {[%clk 0:00:06.5]} 53. Bc7+ {[%clk
0:00:20.4]} 53... Kd5 {[%clk 0:00:06.6]} 54. Bb6 {[%clk 0:00:20.7]} 54... Ke5
{[%clk 0:00:04.9]} 55. Bc7+ {[%clk 0:00:20.7]} 55... Kf5 {[%clk 0:00:05.3]} 56.
Bb6 {[%clk 0:00:21.6]} 56... Rb3+ {[%clk 0:00:05.4]} 57. Kf2 {[%clk 0:00:22.3]}
57... Ke4 {[%clk 0:00:05.2]} 58. Bc7 {[%clk 0:00:23]} 58... Rf3+ {[%clk
0:00:05]} 59. Ke2 {[%clk 0:00:23]} 59... Rf7 {[%clk 0:00:05.9]} 60. Bd6 {[%clk
0:00:20.8]} 60... Rd7 {[%clk 0:00:06.8]} 61. Bf4 {[%clk 0:00:20.9]} 61... Rd5
{[%clk 0:00:07.2]} 62. Bc7 {[%clk 0:00:21.5]} 62... Rb5 {[%clk 0:00:07.7]} 63.
Kf2 {[%clk 0:00:20.6]} 63... Rb3 {[%clk 0:00:07.6]} 64. Ke2 {[%clk 0:00:20.8]}
64... Rb2+ {[%clk 0:00:07.8]} 65. Kd1 {[%clk 0:00:21.1]} 65... Kf3 {[%clk
0:00:08.1]} 66. Kc1 {[%clk 0:00:21.2]} 66... Rb5 {[%clk 0:00:08]} 67. Kd2 {[%clk
0:00:20.2]} 67... Ke4 {[%clk 0:00:06.1]} 68. Ke2 {[%clk 0:00:20.2]} 68... Rc5
{[%clk 0:00:05.9]} 69. Bb6 {[%clk 0:00:19.9]} 69... Rc2+ {[%clk 0:00:06]} 70.
Kf1 {[%clk 0:00:20.2]} 70... Ra2 {[%clk 0:00:06.4]} 71. Bc7 {[%clk 0:00:19.5]}
71... Kf3 {[%clk 0:00:06.6]} 72. Ke1 {[%clk 0:00:19.9]} 72... Rg2 {[%clk
0:00:05.5]} 73. Kf1 {[%clk 0:00:20.1]} 73... Rxg3 {[%clk 0:00:05.5]} 74. a6
{[%clk 0:00:21]} 74... bxa6 {[%clk 0:00:05.2]} 0-1

[Event "Early-Titled-Tuesday-Blitz-September-26-2023"]
[Site "Chess.com"]
[Date "2023.09.26"]
[Round "9"]
[White "vladgoncharov"]
[Black "djokovic74"]
[Result "1-0"]
[WhiteElo "2544"]
[BlackElo "2671"]
[TimeControl "180+1"]
[EndTime "9:46:55 PDT"]
[Termination "vladgoncharov won on time"]

1. d4 {[%clk 0:03:00.9]} 1... e6 {[%clk 0:03:00.6]} 2. c4 {[%clk 0:03:00.5]}
2... Nf6 {[%clk 0:03:01.2]} 3. Nc3 {[%clk 0:03:00.1]} 3... Bb4 {[%clk
0:03:01.7]} 4. e3 {[%clk 0:03:00.6]} 4... O-O {[%clk 0:03:01.1]} 5. Bd3 {[%clk
0:03:00.2]} 5... b6 {[%clk 0:03:01.1]} 6. Ne2 {[%clk 0:02:59.5]} 6... d5 {[%clk
0:03:01.3]} 7. O-O {[%clk 0:02:50.7]} 7... Bb7 {[%clk 0:03:00.6]} 8. cxd5 {[%clk
0:02:46.9]} 8... exd5 {[%clk 0:03:00.5]} 9. h3 {[%clk 0:02:41.6]} 9... a6 {[%clk
0:02:59.2]} 10. a3 {[%clk 0:02:40.8]} 10... Bd6 {[%clk 0:02:58.7]} 11. b4 {[%clk
0:02:40.7]} 11... Re8 {[%clk 0:02:59]} 12. Bb2 {[%clk 0:02:40]} 12... Nbd7
{[%clk 0:02:58.9]} 13. Rc1 {[%clk 0:02:34.2]} 13... Nf8 {[%clk 0:02:59.4]} 14.
Qd2 {[%clk 0:02:14.3]} 14... Ng6 {[%clk 0:02:58]} 15. Bb1 {[%clk 0:02:11.1]}
15... Bc8 {[%clk 0:02:53.4]} 16. f3 {[%clk 0:01:57.6]} 16... Bb7 {[%clk
0:02:50.9]} 17. Rce1 {[%clk 0:01:53.7]} 17... Qd7 {[%clk 0:02:49.3]} 18. Nc1
{[%clk 0:01:52.9]} 18... Bg3 {[%clk 0:02:47.2]} 19. Re2 {[%clk 0:01:49.5]} 19...
Re7 {[%clk 0:02:37]} 20. f4 {[%clk 0:01:40.4]} 20... Rae8 {[%clk 0:02:35.6]} 21.
Nd3 {[%clk 0:01:37.5]} 21... Ne4 {[%clk 0:02:21]} 22. Nxe4 {[%clk 0:01:28.9]}
22... dxe4 {[%clk 0:02:20.8]} 23. Ne5 {[%clk 0:01:28.6]} 23... Qd5 {[%clk
0:02:04.9]} 24. Bc3 {[%clk 0:01:25]} 24... Qd8 {[%clk 0:01:55.8]} 25. Qc1 {[%clk
0:01:14.6]} 25... Bd5 {[%clk 0:01:48.8]} 26. Be1 {[%clk 0:01:13.9]} 26... Bxe1
{[%clk 0:01:47.5]} 27. Rfxe1 {[%clk 0:01:13.7]} 27... f6 {[%clk 0:01:48.1]} 28.
Nxg6 {[%clk 0:01:10.6]} 28... hxg6 {[%clk 0:01:48.1]} 29. Ba2 {[%clk 0:01:06.9]}
29... Bxa2 {[%clk 0:01:46.9]} 30. Rxa2 {[%clk 0:01:06.5]} 30... Qd5 {[%clk
0:01:47.6]} 31. Rc2 {[%clk 0:01:06.4]} 31... Rc8 {[%clk 0:01:42.8]} 32. Rc6
{[%clk 0:00:54.4]} 32... Qb5 {[%clk 0:01:41.8]} 33. Qc4+ {[%clk 0:00:53.6]}
33... Qxc4 {[%clk 0:01:41.3]} 34. Rxc4 {[%clk 0:00:53.7]} 34... Kf7 {[%clk
0:01:36.8]} 35. Rec1 {[%clk 0:00:53.1]} 35... Ke8 {[%clk 0:01:35.8]} 36. a4
{[%clk 0:00:50]} 36... Kd7 {[%clk 0:01:34.1]} 37. a5 {[%clk 0:00:49.9]} 37...
bxa5 {[%clk 0:01:28.7]} 38. bxa5 {[%clk 0:00:49.7]} 38... Re6 {[%clk 0:01:29]}
39. Rc5 {[%clk 0:00:47.2]} 39... Rd6 {[%clk 0:01:26.9]} 40. Kf2 {[%clk
0:00:45.7]} 40... c6 {[%clk 0:01:24.9]} 41. Rb1 {[%clk 0:00:44.5]} 41... Rd5
{[%clk 0:01:22.7]} 42. Rb6 {[%clk 0:00:38.8]} 42... Rxc5 {[%clk 0:01:15.2]} 43.
dxc5 {[%clk 0:00:39.7]} 43... Ke6 {[%clk 0:01:16]} 44. Rxa6 {[%clk 0:00:39.4]}
44... Kd5 {[%clk 0:01:16.4]} 45. Ra7 {[%clk 0:00:39.6]} 45... Kxc5 {[%clk
0:01:16.8]} 46. Rxg7 {[%clk 0:00:40.1]} 46... Kb5 {[%clk 0:01:14.2]} 47. Rxg6
{[%clk 0:00:39.2]} 47... c5 {[%clk 0:01:14.6]} 48. Ke2 {[%clk 0:00:38.5]} 48...
Rd8 {[%clk 0:01:10.7]} 49. Rxf6 {[%clk 0:00:35.2]} 49... c4 {[%clk 0:01:01.4]}
50. a6 {[%clk 0:00:23.4]} 50... c3 {[%clk 0:01:00.6]} 51. a7 {[%clk 0:00:23.3]}
51... c2 {[%clk 0:00:49.7]} 52. a8=Q {[%clk 0:00:22.5]} 52... c1=N+ {[%clk
0:00:49.5]} 53. Kf2 {[%clk 0:00:20.4]} 53... Rxa8 {[%clk 0:00:47.5]} 54. g4
{[%clk 0:00:20.5]} 54... Ra2+ {[%clk 0:00:43.1]} 55. Kg3 {[%clk 0:00:20.1]}
55... Re2 {[%clk 0:00:42.9]} 56. g5 {[%clk 0:00:19.8]} 56... Rxe3+ {[%clk
0:00:42.5]} 57. Kg4 {[%clk 0:00:20.2]} 57... Re1 {[%clk 0:00:33.9]} 58. g6
{[%clk 0:00:19.8]} 58... Rg1+ {[%clk 0:00:32.7]} 59. Kf5 {[%clk 0:00:19.7]}
59... e3 {[%clk 0:00:32.5]} 60. Re6 {[%clk 0:00:20]} 60... e2 {[%clk 0:00:24.3]}
61. h4 {[%clk 0:00:20.3]} 61... e1=Q {[%clk 0:00:16.2]} 62. Rxe1 {[%clk
0:00:19.9]} 62... Rxe1 {[%clk 0:00:17]} 63. h5 {[%clk 0:00:20]} 63... Ne2 {[%clk
0:00:09.6]} 64. g7 {[%clk 0:00:20.2]} 64... Nd4+ {[%clk 0:00:07.2]} 65. Kf6
{[%clk 0:00:19.4]} 65... Rg1 {[%clk 0:00:03.8]} 66. h6 {[%clk 0:00:19.7]} 66...
Kc6 {[%clk 0:00:01.4]} 67. h7 {[%clk 0:00:19.7]} 1-0

[Event "Early-Titled-Tuesday-Blitz-September-26-2023"]
[Site "Chess.com"]
[Date "2023.09.26"]
[Round "9"]
[White "KerryStead"]
[Black "HrvojeZagreb"]
[Result "0-1"]
[WhiteElo "2092"]
[BlackElo "2289"]
[TimeControl "180+1"]
[EndTime "9:47:15 PDT"]
[Termination "HrvojeZagreb won by checkmate"]

1. d4 {[%clk 0:03:00.9]} 1... e6 {[%clk 0:02:52.3]} 2. e4 {[%clk 0:03:00.3]}
2... d5 {[%clk 0:02:48.1]} 3. Be3 {[%clk 0:03:00.7]} 3... dxe4 {[%clk
0:02:47.6]} 4. Nd2 {[%clk 0:03:00.5]} 4... Nf6 {[%clk 0:02:47.7]} 5. f3 {[%clk
0:03:00.4]} 5... exf3 {[%clk 0:02:45.9]} 6. Ngxf3 {[%clk 0:03:01.3]} 6... Nbd7
{[%clk 0:02:45.2]} 7. Bd3 {[%clk 0:03:01]} 7... c5 {[%clk 0:02:45.4]} 8. c3
{[%clk 0:03:01.2]} 8... cxd4 {[%clk 0:02:43.8]} 9. cxd4 {[%clk 0:03:02.1]} 9...
Be7 {[%clk 0:02:40.5]} 10. O-O {[%clk 0:03:01.9]} 10... Ng4 {[%clk 0:02:37.9]}
11. Qe2 {[%clk 0:03:01.4]} 11... Nxe3 {[%clk 0:02:37.1]} 12. Qxe3 {[%clk
0:03:02.3]} 12... O-O {[%clk 0:02:30.9]} 13. Rae1 {[%clk 0:02:57.5]} 13... Bf6
{[%clk 0:02:30.7]} 14. Nc4 {[%clk 0:02:56]} 14... Nb6 {[%clk 0:02:09.5]} 15.
Nce5 {[%clk 0:02:51.5]} 15... Nd5 {[%clk 0:02:05.5]} 16. Qe4 {[%clk 0:02:50.4]}
16... g6 {[%clk 0:02:05.2]} 17. Bb1 {[%clk 0:02:44.9]} 17... Bg7 {[%clk
0:02:03.7]} 18. h4 {[%clk 0:02:37.4]} 18... Qb6 {[%clk 0:01:27.2]} 19. Rf2
{[%clk 0:02:30.3]} 19... f5 {[%clk 0:01:08.3]} 20. Qe2 {[%clk 0:02:15.1]} 20...
Rd8 {[%clk 0:00:47.7]} 21. Nc4 {[%clk 0:02:08.1]} 21... Qa6 {[%clk 0:00:39.4]}
22. Nfe5 {[%clk 0:01:58.4]} 22... b5 {[%clk 0:00:31.6]} 23. Ne3 {[%clk
0:01:45.2]} 23... Qd6 {[%clk 0:00:18.1]} 24. Nxd5 {[%clk 0:01:40.6]} 24... Qxd5
{[%clk 0:00:18.3]} 25. Nf3 {[%clk 0:01:38]} 25... Bd7 {[%clk 0:00:15.6]} 26. h5
{[%clk 0:01:34.4]} 26... Re8 {[%clk 0:00:10.7]} 27. hxg6 {[%clk 0:01:33.1]}
27... hxg6 {[%clk 0:00:11.6]} 28. Qe3 {[%clk 0:01:31.4]} 28... Bc6 {[%clk
0:00:10.2]} 29. Qg5 {[%clk 0:01:30]} 29... Kf7 {[%clk 0:00:09.4]} 30. Nh4 {[%clk
0:01:25.6]} 30... Qxd4 {[%clk 0:00:05.1]} 31. Qxg6+ {[%clk 0:01:25]} 31... Kf8
{[%clk 0:00:05.4]} 32. Rxe6 {[%clk 0:01:18.2]} 32... Qxh4 {[%clk 0:00:04.5]} 33.
Qxf5+ {[%clk 0:01:09]} 33... Kg8 {[%clk 0:00:04.5]} 34. Qf7+ {[%clk 0:01:02.2]}
34... Kh8 {[%clk 0:00:03.6]} 35. Rxe8+ {[%clk 0:00:49.7]} 35... Rxe8 {[%clk
0:00:02.6]} 36. Bd3 {[%clk 0:00:18.6]} 36... Re1+ {[%clk 0:00:02.2]} 37. Bf1
{[%clk 0:00:18.1]} 37... Bd4 {[%clk 0:00:02.8]} 38. Qf8+ {[%clk 0:00:17.3]}
38... Kh7 {[%clk 0:00:03.3]} 39. Qf7+ {[%clk 0:00:17.3]} 39... Kh6 {[%clk
0:00:03.6]} 40. Qf8+ {[%clk 0:00:15.5]} 40... Kh7 {[%clk 0:00:03.8]} 41. Qf7+
{[%clk 0:00:15.6]} 41... Bg7 {[%clk 0:00:04.1]} 42. Qf5+ {[%clk 0:00:15.1]}
42... Kh6 {[%clk 0:00:03.7]} 43. Qf4+ {[%clk 0:00:11.4]} 43... Qxf4 {[%clk
0:00:03.7]} 44. Rxf4 {[%clk 0:00:12.3]} 44... Bd5 {[%clk 0:00:03.8]} 45. Kf2
{[%clk 0:00:10.1]} 45... Re5 {[%clk 0:00:03.1]} 46. Rh4+ {[%clk 0:00:08.7]}
46... Kg5 {[%clk 0:00:03]} 47. Rh3 {[%clk 0:00:08.5]} 47... Rf5+ {[%clk
0:00:03.1]} 48. Ke1 {[%clk 0:00:07.8]} 48... Be5 {[%clk 0:00:02.6]} 49. Be2
{[%clk 0:00:07.7]} 49... Bf4 {[%clk 0:00:02.6]} 50. Rh5+ {[%clk 0:00:07]} 50...
Kf6 {[%clk 0:00:03]} 51. Rxf5+ {[%clk 0:00:05.4]} 51... Kxf5 {[%clk 0:00:03.9]}
52. g4+ {[%clk 0:00:03.5]} 52... Kg5 {[%clk 0:00:03.7]} 53. Kf2 {[%clk
0:00:04.2]} 53... Bxa2 {[%clk 0:00:03.7]} 54. Bxb5 {[%clk 0:00:04.1]} 54... Be6
{[%clk 0:00:03.8]} 55. Ke2 {[%clk 0:00:03.5]} 55... Bxg4+ {[%clk 0:00:04.1]} 56.
Kd3 {[%clk 0:00:04.2]} 56... Bh3 {[%clk 0:00:02.7]} 57. b4 {[%clk 0:00:03.6]}
57... Bf1+ {[%clk 0:00:02.7]} 58. Kd4 {[%clk 0:00:04.2]} 58... Bxb5 {[%clk
0:00:03.4]} 59. Kc5 {[%clk 0:00:04.7]} 59... a6 {[%clk 0:00:04.1]} 60. Kb6
{[%clk 0:00:04.4]} 60... Bd2 {[%clk 0:00:04.7]} 61. Ka5 {[%clk 0:00:04.5]} 61...
Kf4 {[%clk 0:00:05.4]} 62. Kb6 {[%clk 0:00:05.1]} 62... Bxb4 {[%clk 0:00:05.8]}
63. Kc7 {[%clk 0:00:05.8]} 63... Bf8 {[%clk 0:00:06]} 64. Kb6 {[%clk 0:00:06.7]}
64... Be7 {[%clk 0:00:05.8]} 65. Ka5 {[%clk 0:00:07.2]} 65... Bd8+ {[%clk
0:00:05.7]} 66. Kb4 {[%clk 0:00:08.1]} 66... Ke5 {[%clk 0:00:06.3]} 67. Kb3
{[%clk 0:00:08.3]} 67... Kd5 {[%clk 0:00:06.8]} 68. Ka3 {[%clk 0:00:09.2]} 68...
Kc5 {[%clk 0:00:07.2]} 69. Kb3 {[%clk 0:00:10.1]} 69... a5 {[%clk 0:00:07.8]}
70. Ka3 {[%clk 0:00:11]} 70... a4 {[%clk 0:00:08.4]} 71. Kb2 {[%clk 0:00:11.3]}
71... Bf6+ {[%clk 0:00:08.8]} 72. Ka2 {[%clk 0:00:12.2]} 72... Kb4 {[%clk
0:00:09.1]} 73. Kb1 {[%clk 0:00:12.2]} 73... Bd3+ {[%clk 0:00:08.8]} 74. Ka2
{[%clk 0:00:13.1]} 74... Bc4+ {[%clk 0:00:09.3]} 75. Kb1 {[%clk 0:00:13.4]}
75... a3 {[%clk 0:00:09.8]} 76. Kc2 {[%clk 0:00:13.4]} 76... a2 {[%clk
0:00:09.9]} 77. Kd2 {[%clk 0:00:13.6]} 77... a1=Q {[%clk 0:00:10.5]} 78. Kc2
{[%clk 0:00:14.5]} 78... Qc3+ {[%clk 0:00:10.6]} 79. Kd1 {[%clk 0:00:15.4]}
79... Qd3+ {[%clk 0:00:09.4]} 80. Kc1 {[%clk 0:00:15.6]} 80... Bg5+ {[%clk
0:00:09.8]} 81. Kb2 {[%clk 0:00:16.5]} 81... Qb3+ {[%clk 0:00:09.8]} 82. Ka1
{[%clk 0:00:17.1]} 82... Qa2# {[%clk 0:00:10.2]} 0-1